fUST/lending_fUST_20250401
["ID","MTS","AMOUNT","RATE_DAILY","PERIOD"]
[356944747,1743474633135,-332.464937,0.00020843,2]
[356944748,1743474633145,-500.0,0.00020843,2]
[356944749,1743474633155,-500.0,0.00020843,2]
[356944750,1743474633165,-500.0,0.00020843,2]
[356944751,1743474633174,-500.0,0.00020843,2]
[356944752,1743474633183,-500.0,0.00020843,2]
[356944753,1743474633195,-500.0,0.00020843,2]
[356944754,1743474633205,-500.0,0.00020843,2]
[356944755,1743474633215,-500.0,0.00020843,2]
[356944756,1743474633224,-500.0,0.00020843,2]
[356944757,1743474633234,-500.0,0.00020843,2]
[356944758,1743474633243,-190.15970019,0.00020843,2]
[356944759,1743474633253,-646.5211536,0.00020843,2]
[356944760,1743474633263,-151.0,0.00020844,2]
[356944761,1743474633273,-151.0,0.00020844,2]
[356944762,1743474633283,-275.143597,0.00020844,2]
[356944763,1743474633292,-151.0,0.00020844,2]
[356944764,1743474633303,-164.714891,0.00020844,2]
[356944765,1743474633312,-500.083533,0.00020844,2]
[356944766,1743474633322,-500.083533,0.00020844,2]
[356944767,1743474633333,-242.553729,0.00020844,2]
[356944768,1743474633344,-151.0,0.00020844,2]
[356944769,1743474633355,-151.0,0.00020844,2]
[356944770,1743474633366,-151.0,0.00020844,2]
[356944771,1743474633376,-151.0,0.00020844,2]
[356944772,1743474633387,-332.464937,0.00020844,2]
[356944773,1743474633397,-332.464937,0.00020844,2]
[356944774,1743474633407,-332.464937,0.00020844,2]
[356944775,1743474633417,-332.464937,0.00020844,2]
[356944776,1743474633427,-34149.15322591,0.00020844,2]
[356944777,1743474633439,-1167.09604684,0.00020844,2]
[356944778,1743474633452,-706.05097537,0.00020844,2]
[356944808,1743474638339,-519.44944832,0.00020842,2]
[356944809,1743474638349,-500.0,0.00020842,2]
[356944810,1743474638359,-151.0,0.00020843,2]
[356944811,1743474638369,-151.0,0.00020843,2]
[356944812,1743474638379,-546.782452,0.00020843,2]
[356944814,1743474638389,-151.0,0.00020844,2]
[356944815,1743474638398,-151.0,0.00020844,2]
[356944816,1743474638408,-546.782452,0.00020844,2]
[356944817,1743474638417,-546.782452,0.00020844,2]
[356944818,1743474638427,-56053.31537981,0.00020844,2]
[356944819,1743474638436,-835.82398976,0.00020849,2]
[356944820,1743474638446,-151.0,0.00020849,2]
[356944821,1743474638456,-332.464937,0.00020855,2]
[356944822,1743474638465,-332.464937,0.00020855,2]
[356944823,1743474638475,-546.782452,0.00020855,2]
[356944825,1743474638485,-151.0,0.00020861,2]
[356944826,1743474638494,-291.512931,0.00020861,2]
[356944828,1743474638504,-165.323919,0.00020867,2]
[356944830,1743474638514,-151.0,0.00020867,2]
[356944832,1743474638523,-500.083533,0.00020867,2]
[356944833,1743474638533,-500.083533,0.00020867,2]
[356944834,1743474638543,-151.0,0.00020873,2]
[356944835,1743474638552,-151.0,0.00020873,2]
[356944836,1743474638562,-920.322265,0.00020873,2]
[356944837,1743474638572,-920.322265,0.00020873,2]
[356944838,1743474638582,-332.464937,0.00020873,2]
[356944839,1743474638591,-332.464937,0.00020873,2]
[356944840,1743474638601,-151.0,0.00020873,2]
[356944841,1743474638611,-546.782452,0.00020873,2]
[356944842,1743474638620,-217.43058,0.00020879,2]
[356944843,1743474638630,-151.0,0.00020879,2]
[356944844,1743474638640,-172.79762,0.00020879,2]
[356944845,1743474638650,-151.0,0.00020879,2]
[356944846,1743474638659,-156.10328009,0.000209,2]
[356944847,1743474638668,-1523.94545111,0.000209,3]
[356944848,1743474638678,-160.0,0.000209,3]
[356944849,1743474638688,-835.82398976,0.000209,3]
[356944850,1743474638697,-151.0,0.00020933,2]
[356944851,1743474638708,-500.083533,0.00020933,2]
[356944852,1743474638717,-500.083533,0.00020933,2]
[356944853,1743474638727,-332.464937,0.00020933,2]
[356944854,1743474638737,-332.464937,0.00020933,2]
[356944855,1743474638747,-151.0,0.00020933,2]
[356944856,1743474638757,-200.0,0.00020933,2]
[356944857,1743474638767,-151.0,0.00020933,2]
[356944858,1743474638778,-156.10328001,0.00020938,2]
[356944859,1743474638789,-151.0,0.00020942,2]
[356944860,1743474638801,-151.0,0.00020942,2]
[356944861,1743474638815,-151.0,0.00020942,2]
[356944862,1743474638826,-151.0,0.00020942,2]
[356944863,1743474638837,-500.22752621,0.00020942,2]
[356944864,1743474638848,-515.50065432,0.00020942,2]
[356944865,1743474638858,-512.52880549,0.00020942,2]
[356944866,1743474638867,-1000.0,0.00020942,14]
[356944867,1743474638877,-1000.0,0.00020942,14]
[356944868,1743474638889,-509.35378459,0.00020942,2]
[356944869,1743474638899,-1000.0,0.00020942,14]
[356944870,1743474638909,-508.08103243,0.00020942,2]
[356944871,1743474638920,-554.99643698,0.00020942,2]
[356944872,1743474638930,-517.09236197,0.00020942,2]
[356944873,1743474638940,-500.0,0.00020942,2]
[356944874,1743474638951,-151.0,0.00020942,2]
[356944875,1743474638962,-151.0,0.00020942,2]
[356944876,1743474638972,-151.0,0.00020942,2]
[356944877,1743474638982,-151.0,0.00020942,2]
[356944878,1743474638991,-548.61890594,0.00020942,2]
[356944879,1743474639001,-520.57293726,0.00020942,2]
[356944880,1743474639012,-500.0,0.00020942,2]
[356944881,1743474639022,-578.39646682,0.00020942,2]
[356944882,1743474639032,-507.87434632,0.00020942,2]
[356944883,1743474639043,-500.0,0.00020942,2]
[356944884,1743474639052,-151.0,0.00020942,2]
[356944885,1743474639062,-151.0,0.00020942,2]
[356944886,1743474639071,-151.0,0.00020942,2]
[356944887,1743474639081,-151.0,0.00020942,2]
[356944888,1743474639091,-151.0,0.00020942,2]
[356944889,1743474639100,-151.0,0.00020942,2]
[356944890,1743474639113,-500.0,0.00020942,2]
[356944891,1743474639123,-500.0,0.00020942,2]
[356944892,1743474639133,-500.0,0.00020942,2]
[356944893,1743474639142,-151.0,0.00020942,2]
[356944894,1743474639158,-500.0,0.00020942,2]
[356944895,1743474639169,-151.0,0.00020942,2]
[356944896,1743474639178,-151.0,0.00020942,2]
[356944897,1743474639188,-151.0,0.00020942,2]
[356944898,1743474639198,-151.0,0.00020942,2]
[356944899,1743474639207,-500.0,0.00020942,2]
[356944900,1743474639217,-151.0,0.00020942,2]
[356944901,1743474639226,-500.0,0.00020942,2]
[356944902,1743474639236,-500.0,0.00020942,2]
[356944903,1743474639245,-500.0,0.00020942,2]
[356944904,1743474639255,-500.0,0.00020942,2]
[356944905,1743474639265,-500.0,0.00020942,2]
[356944906,1743474639274,-500.0,0.00020942,2]
[356944907,1743474639283,-500.0,0.00020942,2]
[356944908,1743474639293,-920.322265,0.00020942,2]
[356944909,1743474639302,-920.322265,0.00020942,2]
[356944910,1743474639312,-920.322265,0.00020942,2]
[356944911,1743474639321,-920.322265,0.00020942,2]
[356944912,1743474639331,-920.322265,0.00020942,2]
[356944913,1743474639340,-920.322265,0.00020942,2]
[356944914,1743474639349,-920.322265,0.00020942,2]
[356944915,1743474639358,-920.322265,0.00020942,2]
[356944916,1743474639368,-719.36820881,0.00020942,2]
[356944917,1743474639381,-200.95405619,0.00020942,2]
[356944918,1743474639390,-920.322265,0.00020942,2]
[356944919,1743474639399,-920.322265,0.00020942,2]
[356944920,1743474639409,-920.322265,0.00020942,2]
[356944921,1743474639419,-500.0,0.00020942,2]
[356944922,1743474639429,-587.59722926,0.00020942,2]
[356944923,1743474639438,-500.0,0.00020942,2]
[356944924,1743474639448,-500.0,0.00020942,2]
[356944925,1743474639457,-500.0,0.00020942,2]
[356944926,1743474639467,-500.0,0.00020942,2]
[356944927,1743474639476,-500.0,0.00020942,2]
[356944928,1743474639486,-500.0,0.00020942,2]
[356944929,1743474639496,-506.7808518,0.00020942,2]
[356944930,1743474639506,-500.0,0.00020942,2]
[356944931,1743474639515,-523.66496468,0.00020942,2]
[356944932,1743474639525,-16293.19335197,0.00020942,2]
[356945017,1743474643679,-523.58934868,0.00020842,2]
[356945019,1743474643689,-267.98738026,0.00020842,2]
[356945021,1743474643699,-531.30088264,0.00020843,2]
[356945213,1743475832701,-1802.35922649,0.000205,2]
[356945214,1743475832711,-835.82398976,0.00020752,2]
[356945215,1743475832721,-418.94013069,0.00020757,2]
[356945216,1743475832733,-1807.49756817,0.00020758,2]
[356945217,1743475832750,-374.05366051,0.00020758,2]
[356945218,1743475832761,-1955.30965442,0.00020758,2]
[356945219,1743475832772,-1073.36140284,0.00020758,2]
[356945220,1743475832805,-2499.999995,0.00020758,2]
[356945230,1743475840852,-1400.71100295,0.00020758,2]
[356945240,1743475843776,-736.18487395,0.00020758,2]
[356945306,1743476232853,1270.0,2e-06,2]
[356945328,1743477013623,962.11116402,0.00014,2]
[356945376,1743477032967,-207.40585295,0.00016,2]
[356945378,1743477032977,-2540.68948863,0.00019753,2]
[356945586,1743477038666,-3004.29709317,0.00019753,2]
[356945588,1743477038676,-406.880007,0.00020446,15]
[356945590,1743477038685,-160.0,0.00020658,2]
[356945592,1743477038694,-835.82398976,0.00020674,2]
[356945594,1743477038703,-2611.82004362,0.00020674,2]
[356945596,1743477038712,-418.94013069,0.00020674,2]
[356945598,1743477038722,-1040.38452262,0.00020678,2]
[356946062,1743477046790,-161.97444956,0.00020678,2]
[356946063,1743477046801,-161.58472,0.0002068,2]
[356946064,1743477046811,-151.0,0.0002068,2]
[356946065,1743477046820,-151.0,0.0002068,2]
[356946066,1743477046830,-350.058473,0.0002068,2]
[356946067,1743477046843,-350.058473,0.0002068,2]
[356946068,1743477046853,-635.08800991,0.0002068,2]
[356946069,1743477046862,-783.16410118,0.00020738,2]
[356946070,1743477046873,-385.30198568,0.00020767,3]
[356946071,1743477046883,-151.0,0.00020767,2]
[356946072,1743477046893,-152.94308314,0.00020767,2]
[356946074,1743477046904,-233.08,0.00020769,3]
[356946075,1743477046914,-2095.70130831,0.00020773,3]
[356946077,1743477046924,-1017.69,0.00020773,7]
[356946078,1743477046934,-500.0,0.00020776,2]
[356946079,1743477046943,-271.06656165,0.00020776,2]
[356946125,1743478243039,-300.0,0.00019669,2]
[356946126,1743478243050,-639.50906839,0.0001967,2]
[356946134,1743478245876,-374.59545197,0.0001967,2]
[356946196,1743479432189,-628.0,0.000193,2]
[356946198,1743479432198,-300.0,0.00019307,2]
[356946200,1743479432208,-192.65099284,0.00019307,3]
[356946202,1743479432217,-1047.85065416,0.00019307,3]
[356946204,1743479432228,-10500.7383804,0.00019308,2]
[356946206,1743479432238,-350.0,0.0001967,2]
[356946208,1743479432247,-214.6778084,0.00019677,2]
[356946210,1743479432256,-202.87243994,0.000199,2]
[356946212,1743479432266,-304.893,0.00020503,15]
[356946214,1743479432275,-835.82398976,0.00020529,2]
[356946216,1743479432285,-418.94013069,0.0002053,2]
[356946218,1743479432295,-194.23,0.00020567,3]
[356946220,1743479432304,-582.71,0.00020567,3]
[356946222,1743479432314,-500.0,0.00020574,2]
[356946224,1743479432323,-569.71,0.00020574,2]
[356946226,1743479432333,-500.0,0.00020574,2]
[356946228,1743479432342,-500.0,0.00020574,2]
[356946230,1743479432351,-500.0,0.00020574,2]
[356946232,1743479432361,-500.0,0.00020574,2]
[356946234,1743479432370,-507.181493,0.00020574,2]
[356946236,1743479432380,-500.0,0.00020574,2]
[356946238,1743479432389,-513.68130359,0.00020574,2]
[356946240,1743479432399,-242.24532,0.00020574,2]
[356946242,1743479432409,-541.12430365,0.00020574,2]
[356946243,1743479432418,-525.93244709,0.00020574,2]
[356946244,1743479432427,-500.0,0.00020574,2]
[356946245,1743479432437,-513.24194911,0.00020574,2]
[356946246,1743479432447,-151.0,0.00020574,2]
[356946247,1743479432456,-500.0,0.00020574,2]
[356946248,1743479432466,-500.0,0.00020574,2]
[356946249,1743479432476,-527.53183418,0.00020574,2]
[356946250,1743479432486,-151.0,0.00020575,2]
[356946251,1743479432496,-151.0,0.00020575,2]
[356946252,1743479432506,-161.636743,0.00020575,2]
[356946253,1743479432516,-500.0,0.00020575,2]
[356946255,1743479432525,-289.431637,0.00020575,2]
[356946257,1743479432535,-515.55770608,0.00020575,2]
[356946259,1743479432545,-500.0,0.00020575,2]
[356946261,1743479432554,-276.09668,0.00020575,2]
[356946263,1743479432564,-276.09668,0.00020575,2]
[356946265,1743479432574,-276.09668,0.00020575,2]
[356946267,1743479432584,-276.09668,0.00020575,2]
[356946269,1743479432593,-276.09668,0.00020575,2]
[356946271,1743479432603,-276.09668,0.00020575,2]
[356946273,1743479432616,-504.48800468,0.00020575,2]
[356946275,1743479432625,-500.0,0.00020575,2]
[356946277,1743479432635,-500.0,0.00020575,2]
[356946279,1743479432644,-500.0,0.00020575,2]
[356946281,1743479432653,-513.90249801,0.00020575,2]
[356946283,1743479432665,-500.0,0.00020575,2]
[356946285,1743479432674,-514.65307837,0.00020575,2]
[356946287,1743479432685,-513.92532407,0.00020575,2]
[356946289,1743479432694,-500.0,0.00020575,2]
[356946291,1743479432704,-315.052626,0.00020575,2]
[356946293,1743479432713,-315.052626,0.00020575,2]
[356946295,1743479432723,-315.052626,0.00020575,2]
[356946297,1743479432732,-315.052626,0.00020575,2]
[356946300,1743479432742,-315.052626,0.00020575,2]
[356946302,1743479432752,-500.0,0.00020575,2]
[356946304,1743479432761,-315.052626,0.00020575,2]
[356946306,1743479432771,-315.052626,0.00020575,2]
[356946308,1743479432780,-315.052626,0.00020575,2]
[356946310,1743479432790,-315.052626,0.00020575,2]
[356946312,1743479432800,-315.052626,0.00020575,2]
[356946314,1743479432809,-500.0,0.00020575,2]
[356946316,1743479432818,-515.03,0.00020575,2]
[356946318,1743479432827,-151.0,0.00020575,2]
[356946320,1743479432836,-151.0,0.00020575,2]
[356946322,1743479432845,-151.0,0.00020575,2]
[356946324,1743479432855,-161.903905,0.00020575,2]
[356946326,1743479432864,-512.17622181,0.00020575,2]
[356946328,1743479432874,-151.0,0.00020575,2]
[356946330,1743479432883,-151.0,0.00020575,2]
[356946332,1743479432892,-151.0,0.00020575,2]
[356946334,1743479432902,-151.0,0.00020575,2]
[356946336,1743479432911,-151.0,0.00020575,2]
[356946338,1743479432920,-151.0,0.00020575,2]
[356946340,1743479432930,-151.0,0.00020575,2]
[356946342,1743479432939,-522.44774992,0.00020575,2]
[356946344,1743479432948,-151.0,0.00020575,2]
[356946346,1743479432958,-151.0,0.00020575,2]
[356946348,1743479432967,-188.053231,0.00020575,2]
[356946350,1743479432976,-513.25407926,0.00020575,2]
[356946352,1743479432985,-513.8388139,0.00020575,2]
[356946354,1743479432994,-511.23686692,0.00020575,2]
[356946356,1743479433003,-500.0,0.00020575,2]
[356946358,1743479433013,-500.0,0.00020575,2]
[356946360,1743479433023,-383.521795,0.00020575,2]
[356946362,1743479433032,-383.521795,0.00020575,2]
[356946363,1743479433041,-500.0,0.00020575,2]
[356946366,1743479433051,-383.521795,0.00020575,2]
[356946367,1743479433061,-383.521795,0.00020575,2]
[356946370,1743479433073,-383.521795,0.00020575,2]
[356946371,1743479433083,-383.521795,0.00020575,2]
[356946373,1743479433092,-383.521795,0.00020575,2]
[356946375,1743479433102,-383.521795,0.00020575,2]
[356946377,1743479433112,-383.521795,0.00020575,2]
[356946380,1743479433122,-383.521795,0.00020575,2]
[356946381,1743479433131,-383.521795,0.00020575,2]
[356946384,1743479433142,-500.0,0.00020575,2]
[356946386,1743479433151,-383.521795,0.00020575,2]
[356946388,1743479433161,-383.521795,0.00020575,2]
[356946390,1743479433171,-383.521795,0.00020575,2]
[356946392,1743479433181,-517.62377634,0.00020575,2]
[356946394,1743479433191,-500.0,0.00020575,2]
[356946395,1743479433201,-517.54468736,0.00020575,2]
[356946398,1743479433211,-500.0,0.00020575,2]
[356946400,1743479433221,-508.28681601,0.00020575,2]
[356946402,1743479433230,-516.14486297,0.00020575,2]
[356946404,1743479433239,-151.0,0.00020575,2]
[356946406,1743479433249,-198.240453,0.00020575,2]
[356946408,1743479433258,-510.67337134,0.00020575,2]
[356946410,1743479433269,-507.94268925,0.00020575,2]
[356946412,1743479433278,-151.0,0.00020575,2]
[356946414,1743479433287,-151.0,0.00020575,2]
[356946416,1743479433297,-151.0,0.00020575,2]
[356946417,1743479433306,-151.0,0.00020575,2]
[356946419,1743479433316,-151.0,0.00020575,2]
[356946421,1743479433325,-151.0,0.00020575,2]
[356946423,1743479433335,-129.06632968,0.00020575,2]
[356946426,1743479433349,-21.93367032,0.00020575,2]
[356946428,1743479433359,-151.0,0.00020575,2]
[356946430,1743479433369,-151.0,0.00020575,2]
[356946432,1743479433379,-374.20234952,0.00020575,2]
[356946434,1743479433389,-151.0,0.00020576,2]
[356946436,1743479433398,-151.0,0.00020576,2]
[356946438,1743479433409,-233.634813,0.00020576,2]
[356946440,1743479433418,-151.0,0.00020576,2]
[356946442,1743479433428,-92.58414446,0.00020576,2]
[356947655,1743479446200,-597.59698719,0.00020573,2]
[356947656,1743479446210,-500.0,0.00020573,2]
[356947658,1743479446219,-131.50211486,0.00020573,2]
[356947661,1743479446254,-479.95365909,0.00020573,2]
[356947663,1743479446264,-151.0,0.00020574,2]
[356947664,1743479446273,-260.535488,0.00020574,2]
[356947666,1743479446283,-500.0,0.00020574,2]
[356947668,1743479446293,-151.0,0.00020574,2]
[356947669,1743479446304,-500.0,0.00020574,2]
[356947671,1743479446314,-151.0,0.00020574,2]
[356947673,1743479446324,-151.0,0.00020575,2]
[356947674,1743479446334,-151.0,0.00020575,2]
[356947676,1743479446343,-151.0,0.00020575,2]
[356947677,1743479446353,-243.719494,0.00020575,2]
[356947679,1743479446363,-500.0,0.00020575,2]
[356947681,1743479446373,-516.69907868,0.00020575,2]
[356947682,1743479446383,-151.0,0.00020575,2]
[356947684,1743479446392,-257.708699,0.00020575,2]
[356947686,1743479446402,-500.0,0.00020575,2]
[356947688,1743479446412,-500.0,0.00020575,2]
[356947689,1743479446423,-58.41585554,0.00020576,2]
[356947692,1743479446444,-154.159604,0.00020576,2]
[356947693,1743479446454,-151.0,0.00020576,2]
[356947694,1743479446465,-151.0,0.00020576,2]
[356947695,1743479446476,-151.0,0.00020576,2]
[356947696,1743479446487,-151.0,0.00020576,2]
[356947697,1743479446498,-151.0,0.00020576,2]
[356947698,1743479446509,-151.0,0.00020576,2]
[356947699,1743479446519,-151.0,0.00020576,2]
[356947700,1743479446531,-151.0,0.00020576,2]
[356947701,1743479446542,-151.0,0.00020576,2]
[356947702,1743479446552,-567.76212293,0.00020576,2]
[356947703,1743479446563,-520.51200081,0.00020576,2]
[356947705,1743479446574,-511.56335669,0.00020576,2]
[356947707,1743479446584,-505.0865641,0.00020576,2]
[356947709,1743479446594,-502.91855302,0.00020576,2]
[356947711,1743479446604,-517.83742429,0.00020576,2]
[356947713,1743479446614,-358.63721592,0.00020576,2]
[356947715,1743479446628,-511.70716446,0.00020576,2]
[356947717,1743479446638,-276.09668,0.00020576,2]
[356947719,1743479446648,-276.09668,0.00020576,2]
[356947721,1743479446658,-276.09668,0.00020576,2]
[356947723,1743479446669,-276.09668,0.00020576,2]
[356947725,1743479446680,-276.09668,0.00020576,2]
[356947728,1743479446690,-276.09668,0.00020576,2]
[356947730,1743479446701,-276.09668,0.00020576,2]
[356947732,1743479446710,-276.09668,0.00020576,2]
[356947734,1743479446720,-276.09668,0.00020576,2]
[356947736,1743479446730,-276.09668,0.00020576,2]
[356947738,1743479446740,-276.09668,0.00020576,2]
[356947740,1743479446750,-276.09668,0.00020576,2]
[356947742,1743479446759,-276.09668,0.00020576,2]
[356947744,1743479446769,-276.096676,0.00020576,2]
[356947746,1743479446779,-500.0,0.00020576,2]
[356947748,1743479446789,-508.57027801,0.00020576,2]
[356947750,1743479446799,-538.91903127,0.00020576,2]
[356947752,1743479446809,-500.0,0.00020576,2]
[356947754,1743479446819,-509.72920116,0.00020576,2]
[356947756,1743479446829,-505.62584704,0.00020576,2]
[356947758,1743479446839,-190.05887478,0.00020576,2]
[356947761,1743479446849,-500.0,0.00020576,2]
[356947763,1743479446859,-500.0,0.00020576,2]
[356947765,1743479446871,-520.39695824,0.00020576,2]
[356947767,1743479446880,-599.14787103,0.00020576,2]
[356947769,1743479446890,-500.0,0.00020576,2]
[356947771,1743479446899,-315.052626,0.00020576,2]
[356947773,1743479446908,-315.052626,0.00020576,2]
[356947775,1743479446918,-315.052626,0.00020576,2]
[356947777,1743479446928,-315.052626,0.00020576,2]
[356947779,1743479446937,-315.052626,0.00020576,2]
[356947781,1743479446947,-511.93329452,0.00020576,2]
[356947783,1743479446957,-315.052626,0.00020576,2]
[356947785,1743479446966,-315.052626,0.00020576,2]
[356947787,1743479446975,-315.052626,0.00020576,2]
[356947789,1743479446985,-315.052626,0.00020576,2]
[356947791,1743479446995,-315.052621,0.00020576,2]
[356947793,1743479447005,-151.0,0.00020576,2]
[356947795,1743479447015,-151.0,0.00020576,2]
[356947797,1743479447024,-151.0,0.00020576,2]
[356947799,1743479447033,-500.0,0.00020576,2]
[356947801,1743479447043,-500.0,0.00020576,2]
[356947803,1743479447056,-508.33174451,0.00020576,2]
[356947805,1743479447066,-500.0,0.00020576,2]
[356947807,1743479447076,-500.0,0.00020576,2]
[356947809,1743479447086,-531.17798324,0.00020576,2]
[356947811,1743479447095,-512.33947467,0.00020576,2]
[356947813,1743479447105,-500.0,0.00020576,2]
[356947815,1743479447115,-1309.25,0.00020576,2]
[356947818,1743479447127,-500.0,0.00020576,2]
[356947820,1743479447136,-500.0,0.00020576,2]
[356947822,1743479447146,-500.0,0.00020576,2]
[356947824,1743479447156,-383.521795,0.00020576,2]
[356947826,1743479447165,-383.521795,0.00020576,2]
[356947828,1743479447175,-383.521795,0.00020576,2]
[356947830,1743479447185,-383.521795,0.00020576,2]
[356947832,1743479447194,-383.521795,0.00020576,2]
[356947834,1743479447204,-383.52179836,0.00020576,2]
[356947836,1743479447214,-500.0,0.00020576,2]
[356947838,1743479447224,-500.0,0.00020576,2]
[356947840,1743479447234,-500.0,0.00020576,2]
[356947842,1743479447244,-500.0,0.00020576,2]
[356947844,1743479447254,-500.0,0.00020576,2]
[356947846,1743479447264,-500.0,0.00020576,2]
[356947848,1743479447274,-500.0,0.00020576,2]
[356947850,1743479447284,-500.0,0.00020576,2]
[356947852,1743479447294,-500.0,0.00020576,2]
[356947854,1743479447304,-500.0,0.00020576,2]
[356947856,1743479447314,-500.0,0.00020576,2]
[356947858,1743479447324,-772.81,0.00020576,2]
[356947860,1743479447334,-500.0,0.00020576,2]
[356947862,1743479447344,-524.56369362,0.00020576,2]
[356947864,1743479447354,-31431.16575823,0.00020577,2]
[356947866,1743479447363,-151.0,0.00020577,2]
[356947868,1743479447373,-151.0,0.00020577,2]
[356947870,1743479447383,-151.0,0.00020577,2]
[356947872,1743479447393,-1807.49756817,0.00020615,2]
[356947874,1743479447404,-160.0,0.00020615,2]
[356947876,1743479447414,-188.67570671,0.00020665,2]
[356947878,1743479447423,-151.0,0.00020665,2]
[356947880,1743479447433,-200.0,0.00020665,2]
[356947882,1743479447442,-151.0,0.00020666,2]
[356947884,1743479447452,-151.0,0.00020672,2]
[356947886,1743479447462,-500.0,0.00020672,2]
[356947887,1743479447471,-500.0,0.00020672,2]
[356947890,1743479447482,-503.40635412,0.00020672,2]
[356947892,1743479447491,-151.0,0.00020673,2]
[356947894,1743479447503,-151.0,0.00020673,2]
[356947896,1743479447513,-151.0,0.00020673,2]
[356947898,1743479447522,-194.842775,0.00020673,2]
[356947900,1743479447532,-510.2652386,0.00020675,2]
[356947902,1743479447542,-501.61262019,0.00020675,2]
[356947904,1743479447552,-515.59519499,0.00020675,2]
[356947906,1743479447561,-510.96596716,0.00020675,2]
[356947908,1743479447571,-507.27133613,0.00020675,2]
[356947910,1743479447581,-480.71359442,0.00020675,2]
[356947912,1743479447591,-503.29359784,0.00020675,2]
[356947914,1743479447601,-505.16446593,0.00020675,2]
[356947916,1743479447611,-504.6632722,0.00020675,2]
[356947918,1743479447623,-500.0,0.00020675,2]
[356947920,1743479447635,-517.27849018,0.00020675,2]
[356947922,1743479447645,-504.57932673,0.00020675,2]
[356947924,1743479447655,-500.0,0.00020675,2]
[356947926,1743479447665,-500.0,0.00020675,2]
[356947928,1743479447675,-500.0,0.00020675,2]
[356947930,1743479447685,-510.061211,0.00020675,2]
[356947932,1743479447695,-504.02516859,0.00020675,2]
[356947935,1743479447708,-505.21414564,0.00020675,2]
[356947937,1743479447719,-508.17689316,0.00020675,2]
[356947939,1743479447729,-506.73432057,0.00020675,2]
[356947941,1743479447738,-500.0,0.00020675,2]
[356947943,1743479447748,-531.92402902,0.00020675,2]
[356947945,1743479447757,-500.0,0.00020675,2]
[356947947,1743479447767,-500.0,0.00020675,2]
[356947949,1743479447777,-500.0,0.00020675,2]
[356947951,1743479447786,-517.67704994,0.00020675,2]
[356947953,1743479447796,-500.0,0.00020675,2]
[356947955,1743479447806,-500.0,0.00020675,2]
[356947957,1743479447815,-500.0,0.00020675,2]
[356947959,1743479447825,-365.9419089,0.00020675,2]
[356947960,1743479447835,-519.92342398,0.00020675,2]
[356947961,1743479447845,-514.02565492,0.00020675,2]
[356947962,1743479447855,-519.6682824,0.00020675,2]
[356947963,1743479447865,-555.41,0.00020675,2]
[356947964,1743479447876,-529.06431882,0.00020675,2]
[356947965,1743479447885,-512.03876059,0.00020676,2]
[356947970,1743479447943,-521.07743677,0.00020676,2]
[356947972,1743479447954,-514.07951006,0.00020676,2]
[356947974,1743479447963,-505.18703222,0.00020676,2]
[356947976,1743479447973,-511.32515539,0.00020676,2]
[356947978,1743479447983,-507.99061887,0.00020676,2]
[356947980,1743479447993,-551.05291265,0.00020676,2]
[356947982,1743479448003,-520.72069967,0.00020676,2]
[356947984,1743479448012,-513.04920854,0.00020676,2]
[356947986,1743479448023,-514.91011674,0.00020676,2]
[356947988,1743479448033,-505.49380289,0.00020676,2]
[356947990,1743479448043,-508.64839852,0.00020676,2]